bitfinex/quotes_BTCUSD_20250618
["timestamp","ask_amount","ask_price","bid_price","bid_amount"]
[1750280640667,0.5433969,104890.0,104880.0,0.30426572]
[1750280640884,0.53004002,104890.0,104880.0,0.30426572]
[1750280641519,0.55293162,104890.0,104880.0,0.30426572]
[1750280642402,0.56246523,104890.0,104880.0,0.30426572]
[1750280642817,0.55293162,104890.0,104880.0,0.30426572]
[1750280643344,0.56246532,104890.0,104880.0,0.30426572]
[1750280644038,0.55293162,104890.0,104880.0,0.30426572]
[1750280644253,0.52772002,104890.0,104880.0,0.30426572]
[1750280644485,0.53725363,104890.0,104880.0,0.30426572]
[1750280645374,0.72792957,104890.0,104880.0,0.29473166]
[1750280645583,1.09134212,104890.0,104880.0,0.25259777]
[1750280645796,1.09126212,104890.0,104880.0,0.25259777]
[1750280646011,1.10079591,104890.0,104880.0,0.26213202]
[1750280646442,1.09126239,104890.0,104880.0,0.26213202]
[1750280646969,1.11415745,104890.0,104880.0,0.26213202]
[1750280647365,0.74305375,104890.0,104880.0,0.26213202]
[1750280647624,0.51810695,104890.0,104880.0,0.30296608]
[1750280647863,0.53717372,104890.0,104880.0,0.30296608]
[1750280648597,0.72784966,104890.0,104880.0,0.30296608]
[1750280649302,0.73738345,104890.0,104880.0,0.30296608]
[1750280649547,0.71831704,104890.0,104880.0,0.23352882]
[1750280649798,0.71831704,104890.0,104880.0,0.0428347]
[1750280649799,0.69924973,104890.0,104880.0,0.0428347]
[1750280650049,0.75214452,104890.0,104880.0,0.23352882]
[1750280650449,0.75214452,104890.0,104880.0,0.20032882]
[1750280650709,0.74261073,104890.0,104880.0,0.0001]
[1750280650961,1.11555608,104890.0,104880.0,0.19079412]
[1750280651217,1.11555608,104890.0,104880.0,0.20032882]
[1750280651492,1.26504671,104890.0,104880.0,0.0001]
[1750280651941,1.30860671,104890.0,104880.0,0.0001]
[1750280653219,1.30860707,104890.0,104880.0,0.0001]
[1750280653250,1.27660707,104890.0,104880.0,0.0001]
[1750280654039,1.07168707,104890.0,104880.0,0.0001]
[1750280654260,1.27660707,104890.0,104880.0,0.0001]
[1750280655759,0.93892707,104890.0,104880.0,0.0001]
[1750280655982,1.93892707,104890.0,104880.0,0.0001]
[1750280657033,1.97202707,104890.0,104880.0,0.0001]
[1750280657702,2.31202707,104890.0,104880.0,0.0001]
[1750280658790,2.3120214,104890.0,104880.0,0.0001]
[1750280659445,2.31202098,104890.0,104880.0,0.0001]
[1750280660148,2.31201927,104890.0,104880.0,0.0001]
[1750280660359,7.06855303,104890.0,104880.0,0.0001]
[1750280660573,7.36201927,104890.0,104880.0,0.0001]
[1750280660781,7.36501927,104890.0,104880.0,0.0001]
[1750280664725,7.36501687,104890.0,104880.0,0.0001]
[1750280665405,7.17434093,104890.0,104880.0,0.0001]
[1750280665628,7.36501687,104890.0,104880.0,0.0001]
[1750280665857,7.46116609,104890.0,104880.0,0.0001]
[1750280666125,7.51116609,104890.0,104880.0,0.0001]
[1750280666360,7.83128333,104890.0,104880.0,0.0001]
[1750280667063,7.85978692,104890.0,104880.0,0.0001]
[1750280667310,7.90678692,104890.0,104880.0,0.0001]
[1750280667581,7.91378692,104890.0,104880.0,0.0001]
[1750280668056,7.90678692,104890.0,104880.0,0.0001]
[1750280668273,7.92532777,104890.0,104880.0,0.0001]
[1750280668713,7.93132777,104890.0,104880.0,0.0001]
[1750280669359,7.96282777,104890.0,104880.0,0.0001]
[1750280670505,7.96282038,104890.0,104880.0,0.0001]
[1750280676131,7.97232158,104890.0,104880.0,0.0001]
[1750280676329,7.97231934,104890.0,104880.0,0.0001]
[1750280676856,7.97614134,104890.0,104880.0,0.0001]
[1750280678395,7.99897255,104890.0,104880.0,0.0001]
[1750280679278,8.0993729,104890.0,104880.0,0.0001]
[1750280680420,8.15638009,104890.0,104880.0,0.0001]
[1750280681188,0.25022864,104880.0,104870.0,0.0001]
[1750280681438,0.25022864,104880.0,104850.0,0.0641]
[1750280681439,5.97775303,104860.0,104850.0,0.0641]
[1750280681669,6.3080349,104860.0,104850.0,0.0641]
[1750280682932,6.3080349,104860.0,104850.0,0.0661]
[1750280683441,6.31757115,104860.0,104850.0,0.25684868]
[1750280683857,6.32390499,104860.0,104850.0,0.25684868]
[1750280684172,0.8691177,104860.0,104850.0,0.25684868]
[1750280684376,0.98020301,104860.0,104850.0,0.28546052]
[1750280684595,0.9573718,104860.0,104850.0,0.27692345]
[1750280684817,0.75289171,104860.0,104850.0,0.29599767]
[1750280685026,0.98974436,104860.0,104850.0,0.2864607]
[1750280685273,0.98974436,104860.0,104850.0,0.27692345]
[1750280685486,1.19954762,104860.0,104850.0,0.26738611]
[1750280686332,1.19950762,104860.0,104850.0,0.26738611]
[1750280686570,1.18043595,104860.0,104850.0,0.25784868]
[1750280687222,1.35477695,104860.0,104850.0,0.0671]
[1750280687451,6.40193244,104860.0,104850.0,0.0031]
[1750280689058,6.04739159,104860.0,104850.0,0.0023]
[1750280690946,6.40193244,104860.0,104850.0,0.0023]
[1750280691400,6.51553244,104860.0,104850.0,0.0023]
[1750280691845,6.54408396,104860.0,104850.0,0.0023]
[1750280693428,6.39284856,104860.0,104850.0,0.0023]
[1750280694285,6.20771195,104860.0,104850.0,0.0023]
[1750280694496,6.17916043,104860.0,104850.0,0.0023]
[1750280695798,6.12916043,104860.0,104850.0,0.0023]
[1750280696011,6.17916043,104860.0,104850.0,0.0023]
[1750280696221,6.15632394,104860.0,104850.0,0.0023]
[1750280696632,6.32559659,104860.0,104850.0,0.0023]
[1750280696863,6.3320316,104860.0,104850.0,0.0023]
[1750280698456,6.34356967,104860.0,104850.0,0.0023]
[1750280699147,6.34356858,104860.0,104850.0,0.0023]
[1750280699377,6.07759051,104860.0,104850.0,0.0013]
[1750280699623,6.28195051,104860.0,104850.0,0.0608]
[1750280699858,6.28395051,104860.0,104850.0,0.0608]
[1750280700089,6.28495051,104860.0,104850.0,0.0608]
[1750280701495,0.55482678,104850.0,104840.0,0.0773291]
[1750280701728,1.19155094,104850.0,104840.0,0.0773291]
[1750280703285,1.2197295,104850.0,104840.0,0.0773291]
[1750280703540,1.27987534,104850.0,104840.0,0.0773291]
[1750280703779,1.27987534,104850.0,104840.0,0.0783291]
[1750280703997,1.2197295,104850.0,104840.0,0.0783291]
[1750280704484,1.2197295,104850.0,104840.0,0.0773291]
[1750280705196,1.21303245,104850.0,104840.0,0.0773291]
[1750280705415,1.21973098,104850.0,104840.0,0.0773291]
[1750280705641,5.99493485,104850.0,104840.0,0.0466291]
[1750280705908,6.3688802,104850.0,104840.0,0.0466291]
[1750280706148,6.27273098,104850.0,104840.0,0.0780291]
[1750280706386,6.27273129,104850.0,104840.0,0.0780291]
[1750280706892,6.30130996,104850.0,104840.0,0.0780291]
[1750280707567,6.27273129,104850.0,104840.0,0.0780291]
[1750280707780,6.30131707,104850.0,104840.0,0.0780291]
[1750280708216,6.29461823,104850.0,104840.0,0.0780291]
[1750280708436,6.30131828,104850.0,104840.0,0.0780291]
[1750280710252,5.92837293,104850.0,104840.0,0.0780291]
[1750280710467,6.30131828,104850.0,104840.0,0.0780291]
[1750280711108,6.29461823,104850.0,104840.0,0.0780291]
[1750280711343,6.32478849,104850.0,104840.0,0.0780291]
[1750280712058,6.67426828,104850.0,104840.0,0.0132491]
[1750280712310,6.33938998,104850.0,104840.0,0.0132491]
[1750280712996,6.36806298,104850.0,104840.0,0.0132491]
[1750280713219,6.39916298,104850.0,104840.0,0.0132491]
[1750280713439,6.85270833,104850.0,104840.0,0.0132491]
[1750280713693,6.94885755,104850.0,104840.0,0.0132491]
[1750280713916,6.92027177,104850.0,104840.0,0.0132491]
[1750280714139,6.92027231,104850.0,104840.0,0.0132491]
[1750280714359,6.92027234,104850.0,104840.0,0.0132491]
[1750280715303,6.92026868,104850.0,104840.0,0.0132491]
[1750280716839,6.88966868,104850.0,104840.0,0.0132491]
[1750280717354,6.85856868,104850.0,104840.0,0.0132491]
[1750280717578,6.48562333,104850.0,104840.0,0.0132491]
[1750280719985,6.48562282,104850.0,104840.0,0.0132491]
[1750280720430,6.51421945,104850.0,104840.0,0.0132491]
[1750280720650,6.8871648,104850.0,104840.0,0.0132491]
[1750280720874,6.85856817,104850.0,104840.0,0.0132491]
[1750280721105,6.81268997,104850.0,104840.0,0.0132491]
[1750280721545,6.07633652,104850.0,104840.0,0.0132491]
[1750280721767,6.82222722,104850.0,104840.0,0.0132491]
[1750280722705,6.44928306,104850.0,104840.0,0.0132491]
[1750280722923,6.44928411,104850.0,104840.0,0.0132491]
[1750280723137,6.46382496,104850.0,104840.0,0.0132491]
[1750280723810,6.46366496,104850.0,104840.0,0.0132491]
[1750280725697,6.46366519,104850.0,104840.0,0.0132491]
[1750280726831,6.83661054,104850.0,104840.0,0.0132491]
[1750280727058,6.87989054,104850.0,104840.0,0.0132491]
[1750280729099,6.50694519,104850.0,104840.0,0.0132491]
[1750280730696,6.34626519,104850.0,104840.0,0.0132491]
[1750280730921,6.50690519,104850.0,104840.0,0.0132491]
[1750280731137,6.51643795,104850.0,104840.0,0.0132491]
[1750280732068,6.57344514,104850.0,104840.0,0.0132491]
[1750280732704,6.51643795,104850.0,104840.0,0.0132491]
[1750280733387,6.57344514,104850.0,104840.0,0.0132491]
[1750280733833,5.85996773,104850.0,104840.0,0.0776491]
[1750280734056,6.34894892,104850.0,104840.0,0.0776491]
[1750280734290,6.33206403,104850.0,104840.0,0.0776491]
[1750280734515,6.31752318,104850.0,104840.0,0.0776491]
[1750280734978,5.73399252,104850.0,104840.0,0.26841598]
[1750280735198,1.26632429,104850.0,104840.0,0.27795423]
[1750280735434,1.26432429,104850.0,104840.0,0.27895423]
[1750280735660,1.23570787,104850.0,104840.0,0.28849239]
[1750280735885,1.07514787,104850.0,104840.0,0.28849239]
[1750280736107,1.24524484,104850.0,104840.0,0.29803037]
[1750280736591,1.24524484,104850.0,104840.0,0.30756825]
[1750280737025,1.24524484,104850.0,104840.0,0.29803037]
[1750280738215,0.87229949,104850.0,104840.0,0.29803037]
[1750280738427,0.55992068,104850.0,104840.0,0.30756807]
[1750280738658,0.56945793,104850.0,104840.0,0.30756807]
[1750280738871,0.23225083,104850.0,104840.0,0.32522556]
[1750280739087,0.01907367,104850.0,104840.0,0.30756807]
[1750280739310,0.52913092,104850.0,104840.0,0.30756807]
[1750280739521,0.51959367,104850.0,104840.0,0.30756807]
[1750280739736,0.52913083,104850.0,104840.0,0.30756807]
[1750280740178,0.34953679,104850.0,104840.0,0.30756807]
[1750280740396,0.34,104850.0,104840.0,0.30756807]
[1750280740612,0.50052,104850.0,104840.0,0.30756807]
[1750280741817,0.51005661,104850.0,104840.0,0.30756807]
[1750280742258,0.50052,104850.0,104840.0,0.30756807]
[1750280742480,0.34,104850.0,104840.0,0.30756807]
[1750280744782,0.62116517,104860.0,104850.0,0.28385988]
[1750280745013,0.81189566,104860.0,104850.0,0.28385988]
[1750280745237,0.62116517,104860.0,104850.0,0.28385988]
[1750280745486,0.24821982,104860.0,104850.0,0.28385988]
[1750280745746,0.62116517,104860.0,104850.0,0.28385988]
[1750280746253,0.62316517,104860.0,104850.0,0.28385988]
[1750280746479,0.66291218,104860.0,104850.0,0.28385988]
[1750280746702,1.16335218,104860.0,104850.0,0.28385988]
[1750280747665,1.16435218,104860.0,104850.0,0.28385988]
[1750280748822,1.16435218,104860.0,104850.0,0.27432309]
[1750280749441,1.1548163,104860.0,104850.0,0.27432309]
[1750280750368,1.1548163,104860.0,104850.0,0.28386006]
[1750280751321,1.1548163,104860.0,104850.0,0.29339694]
[1750280751546,1.1548163,104860.0,104850.0,0.26478602]
[1750280751818,1.1357438,104860.0,104850.0,0.0645]
[1750280752034,0.71959845,104860.0,104850.0,0.0645]
[1750280752250,1.0925438,104860.0,104850.0,0.26478602]
[1750280752458,1.0925438,104860.0,104850.0,0.25524868]
[1750280752665,1.0925438,104860.0,104850.0,0.26478611]
[1750280753120,1.0925438,104860.0,104850.0,0.27432345]
[1750280753554,0.53665757,104860.0,104850.0,0.25524868]
[1750280753768,0.73457236,104860.0,104850.0,0.26478611]
[1750280753986,0.74410879,104860.0,104850.0,0.27432345]
[1750280754651,0.74410879,104860.0,104850.0,0.28386052]
[1750280754862,0.75571671,104860.0,104850.0,0.28386052]
[1750280755068,0.75571671,104860.0,104850.0,0.27432345]
[1750280755282,0.75571671,104860.0,104850.0,0.2838607]
[1750280755502,0.75571671,104860.0,104850.0,0.29339786]
[1750280755745,1.09571671,104860.0,104850.0,0.27432336]
[1750280755953,1.09571671,104860.0,104850.0,0.29339759]
[1750280756165,1.09571671,104860.0,104850.0,0.30293456]
[1750280756379,1.09567671,104860.0,104850.0,0.30293456]
[1750280756588,1.09567671,104860.0,104850.0,0.26478611]
[1750280756798,1.09567671,104860.0,104850.0,0.27432345]
[1750280756984,1.09567671,104860.0,104850.0,0.2838607]
[1750280757830,1.09567671,104860.0,104850.0,0.26478602]
[1750280758047,1.09567671,104860.0,104850.0,0.28386043]
[1750280758318,1.09567671,104860.0,104850.0,0.2933975]
[1750280758559,1.09567671,104860.0,104850.0,0.30293447]
[1750280758778,1.09567671,104860.0,104850.0,0.26478593]
[1750280759279,1.09567671,104860.0,104850.0,0.274323]
[1750280759939,1.09567671,104860.0,104850.0,0.26478602]
[1750280760154,1.09567671,104860.0,104850.0,0.27432327]
[1750280760373,1.08614028,104860.0,104850.0,0.27432327]
[1750280761034,1.08614028,104860.0,104850.0,0.26478602]
[1750280761896,1.07660376,104860.0,104850.0,0.25524868]
[1750280762189,1.07660376,104860.0,104850.0,0.0645]
[1750280762912,1.07660376,104860.0,104850.0,0.032]
[1750280763128,1.07660376,104860.0,104850.0,0.0649]
[1750280763378,1.08330107,104860.0,104850.0,0.0649]
[1750280763591,0.89157058,104860.0,104850.0,0.0649]
[1750280763814,1.08230107,104860.0,104850.0,0.0649]
[1750280764037,1.08230196,104860.0,104850.0,0.0649]
[1750280764529,0.54030504,104840.0,104830.0,0.0001]
[1750280764777,6.71337835,104840.0,104830.0,0.0001]
[1750280765009,6.72007655,104840.0,104830.0,0.0001]
[1750280765235,6.48447655,104840.0,104830.0,0.0001]
[1750280765464,6.71635155,104840.0,104830.0,0.0001]
[1750280765949,6.71735155,104840.0,104830.0,0.0001]
[1750280766172,6.7173594,104840.0,104830.0,0.0001]
[1750280766396,6.71065335,104840.0,104830.0,0.0001]
[1750280766624,6.7173594,104840.0,104830.0,0.0001]
[1750280767095,6.31261405,104840.0,104830.0,0.0001]
[1750280767776,6.31260174,104840.0,104830.0,0.0001]
[1750280768003,6.31260174,104840.0,104830.0,0.0041]
[1750280768229,6.28392674,104840.0,104830.0,0.0001]
[1750280771960,6.31259475,104840.0,104830.0,0.0001]
[1750280775353,6.305908,104840.0,104830.0,0.0001]
[1750280775801,6.31259124,104840.0,104830.0,0.0001]
[1750280776260,6.31259124,104840.0,104830.0,0.0321]
[1750280777827,6.305908,104840.0,104830.0,0.0653]
[1750280778467,6.67885335,104840.0,104830.0,0.0321]
[1750280778706,6.75380225,104840.0,104830.0,0.0001]
[1750280778953,6.6855356,104840.0,104830.0,0.0001]
[1750280779794,0.5732695,104830.0,104820.0,0.06052]
[1750280780018,0.7334695,104830.0,104820.0,0.06052]
[1750280781091,0.7334695,104830.0,104820.0,0.06452]
[1750280782638,0.36052415,104830.0,104820.0,0.06452]
[1750280782857,0.7334695,104830.0,104820.0,0.06452]
[1750280786757,0.7334695,104830.0,104820.0,0.25532328]
[1750280786975,0.7334695,104830.0,104820.0,0.26486344]
[1750280787198,0.56373043,104830.0,104820.0,0.25532328]
[1750280787405,0.76681043,104830.0,104820.0,0.06452]
[1750280789455,0.79548443,104830.0,104820.0,0.06452]
[1750280790526,0.59031546,104830.0,104820.0,0.28394267]
[1750280790752,0.18869611,104830.0,104820.0,0.28394267]
[1750280790972,0.57118053,104830.0,104820.0,0.28394267]
[1750280791824,0.19823518,104830.0,104820.0,0.28394267]
[1750280792049,0.57118053,104830.0,104820.0,0.28394267]
[1750280792467,0.58071969,104830.0,104820.0,0.28394267]
[1750280792686,0.77150477,104830.0,104820.0,0.27440315]
[1750280792899,0.76196634,104830.0,104820.0,0.27440315]
[1750280793326,0.39573175,104830.0,104820.0,0.30162851]
[1750280793535,0.7686771,104830.0,104820.0,0.30162851]
[1750280794209,0.76196634,104830.0,104820.0,0.30162851]
[1750280794639,0.38902099,104830.0,104820.0,0.30162851]
[1750280795055,0.76196634,104830.0,104820.0,0.30162851]
[1750280795275,0.75913841,104830.0,104820.0,0.29208881]
[1750280795703,0.74959943,104830.0,104820.0,0.28254901]
[1750280795944,0.74959943,104830.0,104820.0,0.29208899]
[1750280796178,0.74959943,104830.0,104820.0,0.31116868]
[1750280796670,0.74959943,104830.0,104820.0,0.29348302]
[1750280798041,0.74959876,104830.0,104820.0,0.29348302]
[1750280799238,0.74959876,104830.0,104820.0,0.27440333]
[1750280799458,0.70415049,104830.0,104820.0,0.27440333]
[1750280800609,0.70415049,104830.0,104820.0,0.28394322]
[1750280800823,0.70415049,104830.0,104820.0,0.29348302]
[1750280801068,0.7041501,104830.0,104820.0,0.29348302]
[1750280801294,0.00953852,104830.0,104820.0,0.30302208]
[1750280801555,0.53815509,104830.0,104820.0,0.30302208]
[1750280801780,0.36861602,104830.0,104820.0,0.30302208]
[1750280801997,0.53815509,104830.0,104820.0,0.30302208]
[1750280803103,0.538155,104830.0,104820.0,0.30302208]
[1750280804233,0.52861602,104830.0,104820.0,0.30302208]
[1750280804669,0.34953852,104830.0,104820.0,0.30302208]
[1750280804908,0.34,104830.0,104820.0,0.30302208]
[1750280806746,0.57105744,104840.0,104830.0,0.27970174]
[1750280807169,0.76182432,104840.0,104830.0,0.27970174]
[1750280807381,0.55198103,104840.0,104830.0,0.27970174]
[1750280807836,0.37294535,104840.0,104830.0,0.27970174]
[1750280808066,0.625613,104850.0,104840.0,0.26060513]
[1750280808277,0.79227543,104850.0,104840.0,0.27014329]
[1750280808728,1.13227543,104850.0,104840.0,0.27014329]
[1750280808943,1.12273827,104850.0,104840.0,0.0603]
[1750280809150,1.11320102,104850.0,104840.0,0.0603]
[1750280809387,1.11320102,104850.0,104840.0,0.0623]
[1750280809603,1.11319857,104850.0,104840.0,0.0623]
[1750280810083,1.11319857,104850.0,104840.0,0.0633]
[1750280810960,0.70843868,104850.0,104840.0,0.0332]
[1750280811176,1.08138403,104850.0,104840.0,0.0332]
[1750280812725,1.08138403,104850.0,104840.0,0.0655]
[1750280814431,0.50567868,104850.0,104840.0,0.25626688]
[1750280814667,0.04027492,104860.0,104850.0,0.62475988]
[1750280814925,0.028667,104860.0,104850.0,0.72100164]
[1750280815161,0.028667,104860.0,104850.0,0.62475988]
[1750280815387,5e-05,104880.0,104870.0,0.28471805]
[1750280815612,5e-05,104880.0,104870.0,0.44987805]
[1750280816055,5e-05,104880.0,104870.0,0.54611981]
[1750280816522,0.01911822,104880.0,104870.0,0.38095999]
[1750280816739,0.60182682,104880.0,104870.0,0.28471833]
[1750280816963,0.44169689,104880.0,104870.0,0.23834783]
[1750280817177,0.45653921,104880.0,104870.0,0.26441842]
[1750280817398,0.21607041,104880.0,104870.0,0.24534783]
[1750280817625,0.56463947,104880.0,104870.0,0.24534783]
[1750280817841,0.66088123,104880.0,104870.0,0.012]
[1750280818053,1.41886743,104880.0,104870.0,0.007]
[1750280818275,0.20024774,104870.0,104860.0,0.20980293]
[1750280818487,0.57319309,104870.0,104860.0,0.20980293]
[1750280818695,0.57319309,104870.0,104860.0,0.20026659]
[1750280819121,0.73201594,104870.0,104860.0,0.23841122]
[1750280819339,0.74155146,104870.0,104860.0,0.23841122]
[1750280819925,0.73201539,104870.0,104860.0,0.30321122]
[1750280820136,0.74155073,104870.0,104860.0,0.30721122]
[1750280820352,0.75108616,104870.0,104860.0,0.30921122]
[1750280821675,0.74155073,104870.0,104860.0,0.30921122]
[1750280822123,0.73201539,104870.0,104860.0,0.30921122]
[1750280822345,0.74155073,104870.0,104860.0,0.30921122]
[1750280822567,0.73201539,104870.0,104860.0,0.30921122]
[1750280822795,0.74155082,104870.0,104860.0,0.30921122]
[1750280823016,0.73201539,104870.0,104860.0,0.30921122]
[1750280823238,0.74155082,104870.0,104860.0,0.30921122]
[1750280823732,6.31487086,104870.0,104860.0,0.006]
[1750280823991,6.33924715,104870.0,104860.0,0.006]
[1750280824201,6.32154249,104870.0,104860.0,0.006]
[1750280825366,6.37863264,104870.0,104860.0,0.004]
[1750280825835,0.23236683,104860.0,104850.0,0.00953743]
[1750280826066,0.36861074,104850.0,104840.0,0.2193798]
[1750280826333,0.74155609,104850.0,104840.0,0.2193798]
[1750280826786,0.76068584,104850.0,104840.0,0.2193798]
[1750280827004,0.77022291,104850.0,104840.0,0.2829798]
[1750280827249,0.028667,104850.0,104840.0,0.2829798]
[1750280827473,0.34,104850.0,104840.0,0.2829798]
[1750280827695,0.73201884,104850.0,104840.0,0.28258126]
[1750280827932,0.74155591,104850.0,104840.0,0.29211896]
[1750280828153,0.73201884,104850.0,104840.0,0.29211896]
[1750280828393,0.86867404,104850.0,104810.0,0.0639]
[1750280828614,0.40156419,104820.0,104810.0,0.2289832]
[1750280828842,0.92282841,104820.0,104810.0,0.20036237]
[1750280829076,0.35907978,104820.0,104810.0,0.27380317]
[1750280829302,0.34953952,104820.0,104810.0,0.2928844]
[1750280829534,0.55942267,104820.0,104810.0,0.26426237]
[1750280829794,0.36861939,104820.0,104810.0,0.28334369]
[1750280830012,0.55942267,104820.0,104810.0,0.28334369]
[1750280830466,0.55942267,104820.0,104810.0,0.29034369]
[1750280830689,0.93236802,104820.0,104810.0,0.28080308]
[1750280831124,0.93236802,104820.0,104810.0,0.29034369]
[1750280831341,0.378159,104820.0,104810.0,0.29988412]
[1750280831561,0.04769907,104820.0,104810.0,0.29988412]
[1750280832862,0.02861902,104820.0,104810.0,0.29988412]
[1750280833333,0.038159,104820.0,104810.0,0.46828412]
[1750280833568,0.04769907,104820.0,104810.0,0.46828412]
[1750280833792,0.0381601,104820.0,104810.0,0.45874369]
[1750280834226,0.22896338,104820.0,104810.0,0.44920308]
[1750280834468,0.21942349,104820.0,104810.0,0.44920308]
[1750280834659,0.21942349,104820.0,104810.0,0.45874369]
[1750280834963,0.21942349,104820.0,104810.0,0.43966237]
[1750280835192,0.57328879,104820.0,104810.0,0.08044107]
[1750280835422,0.57328879,104820.0,104810.0,0.08998205]
[1750280835648,0.57328879,104820.0,104810.0,0.28080353]
[1750280836345,0.91328879,104820.0,104810.0,0.29988522]
[1750280836570,0.91328879,104820.0,104810.0,0.29034442]
[1750280836785,0.90374863,104820.0,104810.0,0.007]
[1750280837007,0.93524863,104820.0,104810.0,0.007]
[1750280837230,1.03149039,104820.0,104810.0,0.007]
[1750280837916,0.20036246,104810.0,104800.0,0.2335]
[1750280838143,0.57330781,104810.0,104800.0,0.0655]
[1750280838366,0.5937387,104810.0,104800.0,0.0655]
[1750280839250,0.5937387,104810.0,104800.0,0.0725]
[1750280840380,0.9337387,104810.0,104800.0,0.0399]
[1750280840613,0.9337387,104810.0,104800.0,0.0071]
[1750280840843,0.9624187,104810.0,104800.0,0.0071]
[1750280841062,0.9939187,104810.0,104800.0,0.0071]
[1750280841535,6.73274993,104810.0,104800.0,0.0001]
[1750280841766,6.95042993,104810.0,104800.0,0.0021]
[1750280841992,6.95042993,104810.0,104800.0,0.0041]
[1750280842432,6.92999904,104810.0,104800.0,0.0041]
[1750280842665,6.92999904,104810.0,104800.0,0.0001]
[1750280842903,0.54,104790.0,104770.0,0.0001]
[1750280843135,5.60497971,104770.0,104760.0,0.0001]
[1750280843377,6.18736682,104770.0,104760.0,0.0001]
[1750280843604,6.40208682,104770.0,104760.0,0.0001]
[1750280843842,6.43078382,104770.0,104760.0,0.0001]
[1750280844076,6.52693304,104770.0,104760.0,0.0001]
[1750280844750,1.3363487,104760.0,104750.0,0.0001]
[1750280844982,6.54779046,104760.0,104750.0,0.0001]
[1750280845256,6.59039213,104760.0,104750.0,0.0001]
[1750280845956,6.59139213,104760.0,104750.0,0.0001]
[1750280846186,6.69403213,104760.0,104750.0,0.0001]
[1750280846640,6.88816008,104760.0,104750.0,0.0001]
[1750280847367,0.21004326,104740.0,104730.0,0.0156291]
[1750280847610,0.67923037,104740.0,104730.0,0.0156291]
[1750280847840,0.53738587,104740.0,104730.0,0.0156291]
[1750280848102,0.91033122,104740.0,104730.0,0.0156291]
[1750280848344,0.91033122,104740.0,104730.0,0.0151491]
[1750280848345,5.96033122,104740.0,104730.0,0.0151491]
[1750280848577,6.05553509,104740.0,104730.0,0.0151491]
[1750280848809,6.51018044,104740.0,104730.0,0.0171491]
[1750280849046,6.51018044,104740.0,104730.0,0.0191491]
[1750280849047,6.30077122,104740.0,104730.0,0.0191491]
[1750280849279,6.30077122,104740.0,104730.0,0.0151491]
[1750280851212,6.08377122,104740.0,104730.0,0.0151491]
[1750280851439,6.38285122,104740.0,104730.0,0.0151491]
[1750280851662,6.51030044,104740.0,104730.0,0.0151491]
[1750280851890,6.44700044,104740.0,104730.0,0.0151491]
[1750280852539,6.35085122,104740.0,104730.0,0.0151491]
[1750280853938,5.97790587,104740.0,104730.0,0.0151491]
[1750280854160,6.30085122,104740.0,104730.0,0.0151491]
[1750280854389,6.30185122,104740.0,104730.0,0.0151491]
[1750280854628,5.96110587,104740.0,104730.0,0.0151491]
[1750280854852,6.43020044,104740.0,104730.0,0.0151491]
[1750280855798,0.55010345,104710.0,104700.0,0.0301]
[1750280856030,1.19009056,104710.0,104700.0,0.0301]
[1750280856263,1.23781056,104710.0,104700.0,0.0301]
[1750280856730,0.86486521,104710.0,104700.0,0.0301]
[1750280856968,1.23781056,104710.0,104700.0,0.0301]
[1750280857202,1.23781056,104710.0,104700.0,0.0351]
[1750280857687,0.86486521,104710.0,104700.0,0.0391]
[1750280857976,0.64634521,104710.0,104700.0,0.0391]
[1750280858215,0.81874521,104710.0,104700.0,0.0391]
[1750280858443,1.19205056,104710.0,104700.0,0.0703]
[1750280858910,1.19205056,104710.0,104700.0,0.28042387]
[1750280858911,0.35909918,104710.0,104700.0,0.28042387]
[1750280859141,0.36864918,104710.0,104700.0,0.2899746]
[1750280859369,0.36864918,104710.0,104700.0,0.29952524]
[1750280859608,0.34,104710.0,104700.0,0.29952505]
[1750280860318,5.25,104740.0,104730.0,0.01909553]
[1750280860578,0.02864334,104730.0,104720.0,0.24457111]
[1750280860816,0.59255684,104730.0,104720.0,0.0321]
[1750280861068,0.39204124,104730.0,104720.0,0.26383475]
[1750280861290,0.00954726,104740.0,104730.0,0.28291122]
[1750280861542,0.55959071,104740.0,104730.0,0.2829114]
[1750280861777,0.00954672,104740.0,104730.0,0.29345912]
[1750280862237,0.01909353,104740.0,104730.0,0.29245912]
[1750280862714,0.20045791,104760.0,104750.0,0.26377686]
[1750280862943,5.06908879,104770.0,104760.0,0.24120281]
[1750280863168,0.58292847,104770.0,104760.0,0.0633]
[1750280863402,0.92292847,104770.0,104760.0,0.26375809]
[1750280863626,0.92292847,104770.0,104760.0,0.27330353]
[1750280863862,0.92292847,104770.0,104760.0,0.28284888]
[1750280864089,0.40042081,104780.0,104770.0,0.0635]
[1750280864368,0.57336616,104780.0,104770.0,0.27348357]
[1750280864600,0.5829096,104780.0,104770.0,0.033]
[1750280865274,0.9259096,104780.0,104770.0,0.033]
[1750280865489,1.1037896,104780.0,104770.0,0.033]
[1750280865991,0.005,104780.0,104770.0,0.28292737]
[1750280866210,0.01454298,104780.0,104770.0,0.28292737]
[1750280866455,0.35154298,104780.0,104770.0,0.28292737]
[1750280866679,0.3686294,104780.0,104770.0,0.28292737]
[1750280867333,0.37817302,104780.0,104770.0,0.28492737]
[1750280867781,0.9515382,104780.0,104770.0,0.26583895]
[1750280867996,0.9229088,104780.0,104770.0,0.0654]
[1750280868663,0.9229088,104780.0,104770.0,0.002]
[1750280869340,1.03369141,104780.0,104770.0,0.002]
[1750280869763,0.66074606,104780.0,104770.0,0.002]
[1750280870207,0.55954834,104760.0,104750.0,0.0629]
[1750280870432,0.22913743,104740.0,104730.0,0.27186341]
[1750280870649,0.21958998,104740.0,104730.0,0.27186341]
[1750280870822,0.22913743,104740.0,104730.0,0.0618]
[1750280871077,0.21959071,104740.0,104730.0,0.0618]
[1750280871267,0.59253606,104740.0,104730.0,0.0618]
[1750280871475,0.21959071,104740.0,104730.0,0.0618]
[1750280871901,0.21959071,104740.0,104730.0,0.26231551]
[1750280872102,0.21959071,104740.0,104730.0,0.07134836]
[1750280872331,0.21959071,104740.0,104730.0,0.07634836]
[1750280872548,0.21959071,104740.0,104730.0,0.08589663]
[1750280872770,0.58298907,104740.0,104730.0,0.0668]
[1750280873875,0.57344181,104740.0,104730.0,0.0668]
[1750280874090,0.57344181,104740.0,104730.0,0.0708]
[1750280874282,0.20049646,104740.0,104730.0,0.0708]
[1750280874536,0.57344181,104740.0,104730.0,0.0708]
[1750280875191,0.93182916,104740.0,104730.0,0.009]
[1750280875631,0.91344181,104740.0,104730.0,0.0394]
[1750280875887,0.91344181,104740.0,104730.0,0.0702]
[1750280876309,0.91344181,104740.0,104730.0,0.0662]
[1750280876518,0.91344181,104740.0,104730.0,0.0622]
[1750280876519,0.94145803,104740.0,104730.0,0.0622]
[1750280877194,0.96254998,104740.0,104730.0,0.0622]
[1750280877401,0.96254998,104740.0,104730.0,0.0632]